fUST/lending_fUST_20250330
["ID","MTS","AMOUNT","RATE_DAILY","PERIOD"]
[356830188,1743283923404,-159.247357,0.00024999,2]
[356830189,1743283933691,-140.752643,0.00024999,2]
[356830190,1743283933713,-78.25605319,0.00024999,2]
[356830192,1743283944196,-164.97350521,0.00024999,2]
[356830193,1743283955404,-181.31170913,0.000249,2]
[356830194,1743283955426,-120.87447276,0.000249,2]
[356830216,1743284739137,-653.63117731,0.00024939,2]
[356830217,1743284739158,-418.66406265,0.0002498,2]
[356830218,1743284739178,-110.8017835,0.00024984,2]
[356830220,1743284825096,-511.3982165,0.00024984,2]
[356830221,1743284825118,-300.0,0.0002499,2]
[356830222,1743284825140,-626.3055553,0.00024991,2]
[356830223,1743284825162,-215.76997754,0.00024991,2]
[356830224,1743284825187,-500.0,0.00024991,2]
[356830225,1743284825211,-500.0,0.00024991,2]
[356830226,1743284825235,-500.0,0.00024991,2]
[356830227,1743284825259,-272.34698209,0.00024991,2]
[356830228,1743284825283,-500.0,0.00024991,2]
[356830229,1743284825307,-500.0,0.00024991,2]
[356830230,1743284825331,-500.0,0.00024991,2]
[356830231,1743284825353,-500.0,0.00024991,2]
[356830232,1743284825376,-500.0,0.00024991,2]
[356830233,1743284825400,-500.0,0.00024991,2]
[356830234,1743284825424,-500.0,0.00024991,2]
[356830235,1743284825447,-500.0,0.00024991,2]
[356830236,1743284825471,-500.0,0.00024991,2]
[356830237,1743284825495,-500.0,0.00024991,2]
[356830238,1743284825522,-500.0,0.00024991,2]
[356830239,1743284825546,-500.0,0.00024991,2]
[356830240,1743284825570,-500.0,0.00024991,2]
[356830241,1743284825594,-500.0,0.00024991,2]
[356830242,1743284825617,-500.0,0.00024991,2]
[356830243,1743284825640,-500.0,0.00024991,2]
[356830244,1743284825664,-500.0,0.00024991,2]
[356830245,1743284825687,-500.0,0.00024991,2]
[356830246,1743284825710,-500.0,0.00024991,2]
[356830247,1743284825735,-500.0,0.00024991,2]
[356830248,1743284825758,-500.0,0.00024991,2]
[356830249,1743284825781,-500.0,0.00024991,2]
[356830250,1743284825804,-500.0,0.00024991,2]
[356830251,1743284825828,-500.0,0.00024991,2]
[356830252,1743284825852,-500.0,0.00024991,2]
[356830253,1743284825876,-500.0,0.00024991,2]
[356830254,1743284825901,-500.0,0.00024991,2]
[356830255,1743284825928,-500.0,0.00024991,2]
[356830256,1743284825952,-500.0,0.00024991,2]
[356830257,1743284825976,-550.0,0.00024991,2]
[356830258,1743284825998,-25798.94676627,0.00024999,2]
[356830259,1743284826020,-645.2214,0.00025039,2]
[356830260,1743284826042,-669.0945918,0.00025094,2]
[356830261,1743284826062,-693.8510917,0.00025149,2]
[356830262,1743284826083,-719.52358209,0.00025204,2]
[356830263,1743284826104,-746.14595463,0.00025259,2]
[356830264,1743284826124,-152.0,0.00025293,2]
[356830265,1743284826145,-773.75335495,0.00025314,2]
[356830266,1743284826166,-802.38222908,0.00025369,2]
[356830267,1743284826186,-192.0,0.00025862,2]
[356830268,1743284826207,-507.51961796,0.000259,6]
[356830269,1743284826228,-272.99087643,0.00026574,2]
[356830270,1743284826250,-507.51961775,0.00026693,6]
[356830271,1743284826272,-420.0,0.00027073,2]
[356830272,1743284826292,-200.0,0.00027097,2]
[356830273,1743284826313,-500.0,0.00027397,5]
[356830274,1743284826335,-507.51961775,0.00027486,7]
[356830275,1743284826354,-500.0,0.00027844,2]
[356830276,1743284826374,-597.78737736,0.00027844,2]
[356830277,1743284826397,-500.0,0.00028178,5]
[356830278,1743284826416,-500.0,0.00028178,5]
[356830279,1743284826436,-166.56729777,0.0002824,2]
[356830280,1743284826457,-653.6311773,0.00028272,2]
[356830281,1743284826478,-507.51961775,0.00028279,7]
[356830282,1743284826498,-500.0,0.00028348,5]
[356830283,1743284826518,-500.0,0.00028348,5]
[356830284,1743284826538,-834.95724862,0.0002837,2]
[356830285,1743284826558,-500.0,0.00028477,5]
[356830286,1743284826578,-500.0,0.00028477,5]
[356830287,1743284826599,-500.0,0.00028477,5]
[356830288,1743284826619,-500.0,0.00028477,5]
[356830289,1743284826639,-501.17725434,0.00028477,2]
[356830290,1743284826659,-500.0,0.00028477,5]
[356830291,1743284826680,-700.0,0.00028479,2]
[356830292,1743284826702,-700.0,0.00028505,2]
[356830293,1743284826722,-2500.0,0.0002857,3]
[356830294,1743284826744,-1958.33846646,0.0002857,3]
[356830295,1743284826766,-700.0,0.0002898,2]
[356830296,1743284826790,-507.51961775,0.00029072,8]
[356830297,1743284826810,-500.0,0.00029116,2]
[356830298,1743284826831,-500.0,0.00029119,2]
[356830299,1743284826852,-476.251,0.00029188,2]
[356830300,1743284826872,-541.0,0.00029188,2]
[356830301,1743284826894,-150.0,0.00029188,2]
[356830302,1743284826915,-2268.0,0.00029188,2]
[356830303,1743284826939,-1915.0,0.00029188,2]
[356830304,1743284826962,-700.0,0.00029296,2]
[356830305,1743284826983,-546.28573553,0.00029603,2]
[356830306,1743284827006,-1203.69032338,0.00029603,2]
[356830307,1743284827027,-500.0,0.00029619,2]
[356830308,1743284827275,-500.0,0.00029673,5]
[356830309,1743284827300,-500.0,0.00029673,5]
[356830310,1743284827321,-500.0,0.00029673,5]
[356830311,1743284827343,-151.0,0.00029682,2]
[356830312,1743284827366,-2922.20822712,0.0002969,2]
[356830313,1743284827388,-135816.05533203,0.000297,2]
[356830314,1743284834145,-587.0,0.00029329,2]
[356830315,1743284834167,-419.67020343,0.00029673,5]
[356830316,1743284835109,-80.32979657,0.00029673,5]
[356830317,1743284835130,-175.62802866,0.00029673,5]
[356830318,1743284842123,-213.98076024,0.00028613,2]
[356830320,1743284851097,-386.01923976,0.00028613,2]
[356830321,1743284851125,-542.27337548,0.00028849,2]
[356830322,1743284853081,-57.72662452,0.00028849,2]
[356830323,1743284853103,-500.0,0.00028909,2]
[356830324,1743284853123,-500.0,0.00029112,2]
[356830325,1743284853144,-500.0,0.00029241,2]
[356830326,1743284853166,-53.75001558,0.00029598,2]
[356830327,1743284946084,-392.03315668,0.0002499,2]
[356830328,1743284950097,-26.63090597,0.0002499,2]
[356830354,1743285032687,-500.0,0.00027397,5]
[356830355,1743285032697,-3213.61180899,0.00029,2]
[356830356,1743285032707,-546.24998442,0.00029598,2]
[356830357,1743285032716,-437.02858844,0.00029617,2]
[356830358,1743285032726,-401.0,0.00029658,2]
[356830359,1743285032736,-500.0,0.0002967,2]
[356830360,1743285032745,-439.55258464,0.0002967,2]
[356830361,1743285032754,-300.0,0.00029672,2]
[356830362,1743285032764,-500.0,0.00029673,5]
[356830363,1743285032773,-500.0,0.00029673,5]
[356830364,1743285032782,-500.0,0.00029673,5]
[356830365,1743285032792,-500.0,0.00029673,5]
[356830366,1743285032801,-500.0,0.00029673,5]
[356830367,1743285032811,-500.0,0.00029673,5]
[356830368,1743285032820,-500.0,0.00029673,5]
[356830369,1743285032829,-500.0,0.00029673,5]
[356830370,1743285032839,-500.0,0.00029673,5]
[356830371,1743285032849,-151.0,0.00029682,2]
[356830372,1743285032859,-622.2,0.00029682,2]
[356830373,1743285032868,-657.49685109,0.0002969,2]
[356830374,1743285032878,-191.0936135,0.00029699,2]
[356830375,1743285032888,-14318.05349077,0.000297,2]
[356830384,1743285038189,-481.275,0.00029689,2]
[356830656,1743285043365,-18.725,0.00029689,2]
[356830657,1743285043375,-500.0,0.00029689,2]
[356830658,1743285043387,-500.0,0.00029689,2]
[356830659,1743285043399,-632.23469821,0.00029689,2]
[356830660,1743285043409,-4520.04029729,0.000297,2]
[356830678,1743285046271,-28.43975836,0.000297,2]
[356830679,1743285046335,-3449.95434255,0.000297,2]
[356830680,1743285047134,-24177.91978969,0.000297,2]
[356830681,1743285935127,-180.30337611,0.000246,2]
[356830682,1743285955099,-362.939636,0.000246,2]
[356830684,1743286037134,-562.33907089,0.000246,2]
[356830685,1743286037155,-500.0,0.00027397,5]
[356830686,1743286037175,-256.7300749,0.00028273,2]
[356830687,1743286037195,-95.93477514,0.00028361,2]
[356830688,1743286038086,-600.0,0.00028235,2]
[356830689,1743286038107,-956.91411161,0.00028361,2]
[356830721,1743286232589,-500.0,0.00027397,5]
[356830722,1743286232598,-500.0,0.00028203,2]
[356830723,1743286232608,-500.0,0.00028206,2]
[356830724,1743286232617,-1025.71912705,0.00028361,2]
[356830725,1743286232627,-600.0,0.00028483,2]
[356830726,1743286232636,-600.0,0.00028628,2]
[356830727,1743286232645,-600.0,0.00028694,2]
[356830728,1743286232655,-152.0,0.00028739,2]
[356830729,1743286232664,-600.0,0.00028797,2]
[356830730,1743286232674,-500.0,0.00029033,2]
[356830731,1743286232683,-600.0,0.00029183,2]
[356830732,1743286232693,-500.0,0.00029313,2]
[356830733,1743286232702,-300.0,0.00029323,2]
[356830734,1743286232712,-150.0,0.00029408,2]
[356830735,1743286232721,-152.5433699,0.000295,2]
[356830736,1743286232731,-349.62287072,0.00029534,2]
[356830737,1743286232740,-151.0,0.00029555,2]
[356830738,1743286232750,-151.0,0.00029555,2]
[356830739,1743286232759,-278.77393381,0.00029555,2]
[356830740,1743286232768,-243.078738,0.00029572,2]
[356830741,1743286232778,-500.0,0.00029572,2]
[356830742,1743286232787,-500.0,0.00029573,5]
[356830743,1743286232796,-552.73632071,0.00029573,2]
[356830745,1743286232806,-500.0,0.00029573,5]
[356830747,1743286232815,-500.0,0.00029573,5]
[356830748,1743286232825,-172.96677328,0.00029573,5]
[356830749,1743286232834,-500.0,0.00029573,5]
[356830750,1743286232843,-500.0,0.00029573,2]
[356830751,1743286232853,-500.0,0.00029573,5]
[356830752,1743286232863,-500.0,0.00029573,5]
[356830753,1743286232873,-500.0,0.00029573,5]
[356830754,1743286232882,-175.159423,0.00029573,2]
[356830755,1743286232892,-240.5601574,0.00029582,2]
[356830756,1743286232901,-622.2,0.00029582,2]
[356830757,1743286232911,-1117.74464688,0.0002959,2]
[356830758,1743286232920,-263.65,0.0002959,3]
[356830759,1743286232929,-286.07984343,0.000296,4]
[356830760,1743286232939,-234.68810552,0.000296,4]
[356830761,1743286232949,-370000.0,0.000296,2]
[356830762,1743286232959,-186.29077448,0.00029627,2]
[356830763,1743286232971,-645.2214,0.00029637,2]
[356830764,1743286232980,-150.0,0.00029658,2]
[356830765,1743286232990,-669.0945918,0.00029692,2]
[356830766,1743286232999,-1500.0,0.000297,120]
[356830767,1743286233009,-822.19122417,0.00029747,2]
[356830768,1743286233019,-384.93691899,0.00029817,2]
[356830769,1743286233029,-3130.24066194,0.00029835,2]
[356830770,1743286233038,-1195.52236688,0.00029899,2]
[356830771,1743286233048,-422.93301484,0.000299,8]
[356830772,1743286233057,-500.0,0.00029944,2]
[356830773,1743286233067,-550.1507198,0.0003,2]
[356830774,1743286233077,-1681.6,0.0003,2]
[356830775,1743286233090,-500.0,0.00030333,7]
[356830776,1743286233100,-500.0,0.0003035,5]
[356830777,1743286233110,-500.0,0.0003035,5]
[356830778,1743286233120,-600.0,0.00030388,7]
[356830779,1743286233130,-500.0,0.00030447,7]
[356830780,1743286233140,-422.93301479,0.00030555,9]
[356830781,1743286233150,-600.0,0.0003058,7]
[356830782,1743286233160,-600.0,0.00030635,7]
[356830783,1743286233170,-600.0,0.00030714,7]
[356830784,1743286233180,-349.62287072,0.00030788,2]
[356830785,1743286233190,-600.0,0.0003082,7]
[356830786,1743286233200,-500.0,0.00031194,7]
[356830787,1743286233210,-422.93301479,0.0003121,9]
[356830788,1743286233220,-600.0,0.00031609,7]
[356830789,1743286233229,-420.0,0.00031626,2]
[356830790,1743286233239,-600.0,0.00031744,7]
[356830791,1743286233248,-600.0,0.00031786,7]
[356830792,1743286233258,-422.93301479,0.00031866,10]
[356830793,1743286233267,-500.0,0.00031878,7]
[356830794,1743286233277,-349.62287072,0.00032042,2]
[356830795,1743286233286,-600.0,0.0003208,7]
[356830796,1743286233295,-600.0,0.00032101,7]
[356830797,1743286233304,-240.24683501,0.00032129,7]
[356830798,1743286233314,-600.0,0.0003228,7]
[356830799,1743286233323,-422.93301479,0.00032521,10]
[356830800,1743286233336,-500.0,0.0003265,5]
[356830801,1743286233345,-500.0,0.0003265,5]
[356830802,1743286233355,-600.0,0.00032778,7]
[356830803,1743286233364,-1000.0,0.00032877,5]
[356830804,1743286233375,-2000.0,0.00033,9]
[356830805,1743286233384,-500.0,0.00033,12]
[356830806,1743286233394,-500.0,0.00033,12]
[356830807,1743286233403,-422.93301479,0.00033176,11]
[356830808,1743286233414,-500.0,0.00033231,7]
[356830809,1743286233424,-5622.5089742,0.00033281,2]
[356830810,1743286233433,-349.62287072,0.00033296,2]
[356830811,1743286233442,-600.0,0.00033318,7]
[356830812,1743286233452,-160.0,0.00033361,2]
[356830813,1743286233461,-600.0,0.00033383,7]
[356830814,1743286233471,-600.0,0.00033419,7]
[356830815,1743286233482,-500.0,0.00033733,7]
[356830816,1743286233491,-500.0,0.00033807,7]
[356830817,1743286233500,-422.93301479,0.00033831,11]
[356830818,1743286233510,-500.0,0.00033944,7]
[356830819,1743286233519,-804.97604422,0.00033972,7]
[356830820,1743286233529,-2000.0,0.00034,11]
[356830821,1743286233538,-587.0,0.00034109,2]
[356830822,1743286233548,-600.0,0.00034293,7]
[356830823,1743286233558,-160.0,0.00034355,7]
[356830824,1743286233567,-500.0,0.00034364,7]
[356830825,1743286233576,-422.93301479,0.00034486,11]
[356830826,1743286233586,-500.0,0.00034528,7]
[356830827,1743286233596,-349.62287072,0.0003455,2]
[356830828,1743286233606,-600.0,0.00034596,7]
[356830829,1743286233615,-1490.32619584,0.0003464,2]
[356830830,1743286233625,-160.0,0.00034646,3]
[356830831,1743286233634,-243968.18980989,0.0003465,2]
[356830832,1743286233647,-75534.30437561,0.0003465,2]
[356830833,1743286233658,-20646.83086129,0.0003465,2]
[356830834,1743286233668,-500.0,0.00034673,5]
[356830835,1743286233678,-500.0,0.00034673,5]
[356830836,1743286233687,-500.0,0.00034673,5]
[356830837,1743286233698,-500.0,0.00034673,5]
[356830838,1743286233708,-500.0,0.00034673,5]
[356830839,1743286233717,-500.0,0.00034673,5]
[356830840,1743286233727,-600.0,0.00034858,7]
[356830841,1743286233737,-201.0,0.0003486,7]
[356830842,1743286233746,-558.87232344,0.00034865,2]
[356830843,1743286233756,-505.94866857,0.00034873,5]
[356830844,1743286233766,-500.0,0.00034873,5]
[356830845,1743286233775,-23928.2095793,0.00034875,7]
[356830863,1743286238552,-451.851,0.00029694,2]
[356830865,1743286238562,-401.0,0.00032694,2]
[356830867,1743286238572,-500.0,0.00034081,7]
[356830869,1743286238581,-500.0,0.00034218,7]
[356830871,1743286238590,-500.0,0.00034355,7]
[356830873,1743286238600,-500.0,0.00034492,7]
[356830874,1743286238610,-500.0,0.00034629,7]
[356830875,1743286238620,-500.0,0.00034766,7]
[356830876,1743286238629,-2442.89767146,0.00034875,7]
[356830877,1743286238641,-1649.302789,0.00034875,7]
[356830878,1743286238652,-1929.35351999,0.00034875,7]
[356830879,1743286238663,-361.29087959,0.00034875,7]
[356830880,1743286238679,-12060.86560707,0.00034875,7]
[356830881,1743286238690,-19722.73339343,0.00034875,7]
[356830882,1743286238700,-384.19285352,0.00034875,7]
[356830883,1743286238712,-4633.70808809,0.00034875,7]
[356830884,1743286238723,-640.05167984,0.00034875,7]
[356830885,1743286238735,-399.82719863,0.00034875,7]
[356830889,1743286240744,-30815.91228671,0.00034875,7]
[356830890,1743286240756,-750.82011137,0.00034875,7]
[356830891,1743286240806,-21650.33740966,0.00034875,7]
[356830892,1743286243693,-851.22438701,0.00034875,7]
[356830920,1743286246574,-10510.82736094,0.00034875,7]
[356830921,1743287136141,-190.78184331,0.00027397,5]
[356830922,1743287141243,-309.21815669,0.00027397,5]
[356830923,1743287141264,-265.33691121,0.00028064,4]
[356830926,1743287234075,-500.0,0.00027397,5]
[356830927,1743287234096,-708.17545739,0.00028064,4]
[356830928,1743287234116,-175.66051094,0.00028298,2]
[356830929,1743287234137,-203.23430999,0.00028398,2]
[356830930,1743287238137,-16.95757109,0.00028398,2]
[356830931,1743287238160,-1445.41694155,0.00028774,3]
[356830932,1743287318964,-196.4098005,0.00018,4]
[356830933,1743287344292,-178.26994734,0.00017999,2]
[356830934,1743287351130,-121.73005266,0.00017999,2]
[356830935,1743287351151,-20934.14964927,0.00018,4]
[356830936,1743287351171,-541.57137695,0.00019177,4]
[356830937,1743287351193,-420.0,0.00019639,2]
[356830938,1743287351215,-587.0,0.00021428,2]
[356830940,1743287360276,-175.28725544,0.00023,2]
[356830941,1743287360298,-454.0,0.00023381,2]
[356830954,1743287370126,-491.37565799,0.00025,4]
[356830955,1743287370160,-13599.77457767,0.00025,4]
[356830956,1743287370185,-500.0,0.00025999,2]
[356830957,1743287370209,-500.0,0.00025999,2]
[356830958,1743287370229,-5296.48773288,0.00026,10]
[356830959,1743287373091,-210.76475478,0.00026,10]
[356830966,1743287405548,356.926077,0.00022988,2]
[356830967,1743287405570,44.26260981,0.00022988,2]
[356830983,1743287432721,-179.0,0.00025999,2]
[356830984,1743287432733,-18055.310854,0.00026,10]
[356830985,1743287432743,-7638.18087067,0.000269,7]
[356830986,1743287432752,-500.0,0.00027397,5]
[356830987,1743287432762,-7638.18087047,0.0002759,7]
[356830988,1743287432773,-169.7800791,0.00028185,2]
[356830989,1743287432782,-7638.18087047,0.00028279,7]
[356830990,1743287432792,-1054.58305845,0.00028774,3]
[356830991,1743287432803,-2500.0,0.00028783,3]
[356830992,1743287432812,-2500.0,0.00028783,3]
[356830993,1743287432822,-500.0,0.00028864,2]
[356830994,1743287432831,-956.35407393,0.0002888,2]
[356830995,1743287432840,-7638.18087047,0.00028969,8]
[356830996,1743287432849,-418.66406265,0.00029085,2]
[356830997,1743287432859,-500.0,0.00029116,2]
[356830998,1743287432867,-152.0,0.00029207,2]
[356830999,1743287432876,-1449.18582828,0.00029421,2]
[356831000,1743287432885,-257.88066276,0.00029421,2]
[356831001,1743287432895,-500.0,0.00029473,2]
[356831002,1743287432904,-151.0,0.00029482,2]
[356831003,1743287432913,-622.2,0.00029482,2]
[356831004,1743287432922,-370000.0,0.000295,2]
[356831005,1743287432937,-645.2214,0.00029537,2]
[356831006,1743287432946,-257.88066276,0.00029576,2]
[356831007,1743287432956,-1330.67312544,0.00029592,2]
[356831008,1743287432966,-7638.18087047,0.00029659,8]
[356831009,1743287432975,-257.88066276,0.00029731,2]
[356831010,1743287432984,-500.0,0.00029804,2]
[356831011,1743287432994,-192.0,0.00029864,2]
[356831012,1743287433004,-257.88066276,0.00029886,2]
[356831013,1743287433013,-500.0,0.00029903,2]
[356831014,1743287433023,-1513.44,0.0003,2]
[356831015,1743287433033,-1000.0,0.0003,120]
[356831016,1743287433043,-257.88066276,0.00030041,2]
[356831017,1743287433052,-500.0,0.00030115,7]
[356831018,1743287433063,-500.0,0.00030173,5]
[356831019,1743287433073,-500.0,0.00030173,5]
[356831020,1743287433083,-500.0,0.00030173,5]
[356831021,1743287433093,-500.0,0.00030173,5]
[356831022,1743287433103,-500.0,0.00030173,5]
[356831023,1743287433112,-500.0,0.00030173,5]
[356831024,1743287433122,-500.0,0.00030173,5]
[356831025,1743287433132,-500.0,0.00030173,2]
[356831026,1743287433142,-556.22740025,0.00030173,5]
[356831027,1743287433151,-500.0,0.00030173,5]
[356831028,1743287433161,-248.38769932,0.0003019,2]
[356831029,1743287433171,-286.07984343,0.000302,4]
[356831030,1743287433180,-76989.80846875,0.000302,14]
[356831043,1743287443838,-344.95327808,0.00028782,2]
[356831044,1743287443849,-234.68810551,0.000302,4]
[356831045,1743287443858,-230.90009464,0.000302,14]
[356831051,1743287446693,-10157.8472799,0.000302,14]
[356831062,1743287460311,172.63844085,0.000179,2]
[356831065,1743287729570,-172.63844085,0.00025738,2]
[356831073,1743287858469,-35.42298626,0.00025738,2]
[356831074,1743287858492,-197.08551895,0.00025897,2]
[356831136,1743288345142,-150.0,0.0002589,2]
[356831137,1743288345163,-230.14800246,0.00025967,2]
[356831142,1743288432084,-300.0,0.00025992,2]
[356831143,1743288432110,-500.0,0.00025993,2]
[356831144,1743288432134,-500.0,0.00025993,2]
[356831145,1743288432159,-309.03600393,0.00025993,2]
[356831146,1743288449101,-282.43201239,0.00025993,2]
[356831147,1743288450135,-277.70578065,0.00025993,2]
[356831148,1743288451104,-928.29261524,0.00025993,2]
[356831149,1743288454132,-1578.01443004,0.00025993,2]
[356831150,1743288552185,-278.70963192,0.0002599,2]
[356831151,1743288570123,-43.77038448,0.0002599,2]
[356831152,1743288570145,-300.0,0.00025992,2]
[356831153,1743288570166,-7781.3919638,0.00025993,2]
[356831154,1743288570190,-190.96399607,0.00025993,2]
[356831155,1743288570213,-500.0,0.00025993,2]
[356831156,1743288570235,-500.0,0.00025993,2]
[356831157,1743288570261,-500.0,0.00025993,2]
[356831158,1743288570283,-589.02324772,0.00025993,2]
[356831159,1743288570308,-500.0,0.00025993,2]
[356831160,1743288570333,-500.0,0.00025993,2]
[356831161,1743288570354,-500.0,0.00025993,2]
[356831162,1743288570376,-500.0,0.00025993,2]
[356831163,1743288570402,-500.0,0.00025993,2]
[356831164,1743288570423,-500.0,0.00025993,2]
[356831165,1743288570448,-500.0,0.00025993,2]
[356831166,1743288570472,-500.0,0.00025993,2]
[356831167,1743288570495,-500.0,0.00025993,2]
[356831168,1743288570519,-500.0,0.00025993,2]
[356831169,1743288570541,-500.0,0.00025993,2]
[356831170,1743288570565,-500.0,0.00025993,2]
[356831171,1743288570588,-500.0,0.00025993,2]
[356831172,1743288570612,-500.0,0.00025993,2]
[356831173,1743288570635,-500.0,0.00025993,2]
[356831174,1743288570658,-500.0,0.00025993,2]
[356831175,1743288570682,-500.0,0.00025993,2]
[356831176,1743288570706,-500.0,0.00025993,2]
[356831177,1743288570730,-500.0,0.00025993,2]
[356831178,1743288570752,-500.0,0.00025993,2]
[356831179,1743288570776,-500.0,0.00025993,2]
[356831180,1743288570801,-500.0,0.00025993,2]
[356831181,1743288570825,-207.18323327,0.00025993,2]
[356831182,1743288570848,-500.0,0.00025993,2]
[356831183,1743288570872,-500.0,0.00025993,2]
[356831184,1743288570897,-500.0,0.00025993,2]
[356831185,1743288570923,-500.0,0.00025993,2]
[356831186,1743288570947,-500.0,0.00025993,2]
[356831187,1743288570973,-500.0,0.00025993,2]
[356831188,1743288570998,-500.0,0.00025993,2]
[356831189,1743288571022,-500.0,0.00025993,2]
[356831190,1743288571046,-500.0,0.00025993,2]
[356831191,1743288571070,-500.0,0.00025993,2]
[356831192,1743288571096,-500.0,0.00025993,2]
[356831193,1743288571121,-570.71832332,0.00025993,2]
[356831194,1743288571142,-335.12540898,0.00026,2]
[356831195,1743288571164,-500.0,0.00026,2]
[356831196,1743288571185,-500.0,0.00026,2]
[356831197,1743288571205,-500.0,0.00026,2]
[356831198,1743288571225,-303.8570857,0.00026,2]
[356831207,1743288632069,-143.28123714,0.00026,2]
[356831208,1743288632079,-500.0,0.00026,2]
[356831209,1743288632089,-325.71996615,0.00026757,2]
[356831210,1743288632101,-6378.6556237,0.000269,7]
[356831211,1743288632111,-500.0,0.0002692,2]
[356831212,1743288632121,-500.0,0.00027397,5]
[356831213,1743288632131,-287.50182968,0.00027543,2]
[356831214,1743288632140,-6378.65562359,0.0002759,7]
[356831215,1743288632150,-193.55946868,0.00027972,2]
[356831216,1743288632160,-22332.4252615,0.00027988,2]
[356831217,1743288632169,-152.0,0.00028158,2]
[356831218,1743288632179,-6378.65562359,0.00028279,7]
[356831219,1743288632189,-500.0,0.00028729,5]
[356831220,1743288632199,-500.0,0.00028743,5]
[356831221,1743288632208,-500.0,0.00028921,2]
[356831222,1743288632218,-6378.65562359,0.00028969,8]
[356831223,1743288632226,-500.0,0.0002935,5]
[356831224,1743288632235,-500.0,0.0002935,5]
[356831225,1743288632245,-500.0,0.0002935,5]
[356831226,1743288632254,-500.0,0.00029605,2]
[356831227,1743288632264,-181.31170913,0.00029651,2]
[356831228,1743288632273,-6378.65562359,0.00029659,8]
[356831229,1743288632282,-500.0,0.00029765,2]
[356831230,1743288632291,-1362.09,0.0003,2]
[356831231,1743288632300,-494.0,0.0003,14]
[356831232,1743288632309,-505.83191832,0.00030073,5]
[356831233,1743288632319,-500.0,0.00030073,5]
[356831234,1743288632328,-500.0,0.00030073,5]
[356831235,1743288632338,-500.0,0.00030073,5]
[356831236,1743288632348,-370000.0,0.000301,2]
[356831237,1743288632357,-257.82595747,0.000301,2]
[356831238,1743288632366,-280.27809054,0.00030173,3]
[356831239,1743288632378,-500.0,0.00030173,5]
[356831240,1743288632387,-500.0,0.00030173,5]
[356831241,1743288632396,-159.32342339,0.00030173,5]
[356831242,1743288632405,-500.0,0.00030173,5]
[356831243,1743288632415,-500.0,0.00030173,5]
[356831244,1743288632424,-12458.93820146,0.00030192,2]
[356831245,1743288632433,-160.0,0.00030192,2]
[356831246,1743288632443,-250696.66835902,0.000302,14]
[356831247,1743288632459,-346074.61063184,0.000302,14]
[356831256,1743288637892,-30.85619785,0.00027589,2]
[356831314,1743288640110,-590.14638523,0.00027589,2]
[356831315,1743288640119,-500.0,0.00027589,2]
[356831316,1743288640129,-500.0,0.00027589,2]
[356831317,1743288640140,-500.0,0.00027589,2]
[356831318,1743288640151,-457.07183234,0.00027589,2]
[356831319,1743288640160,-241.46729466,0.00028968,2]
[356831320,1743288640170,-190.0,0.000302,2]
[356831321,1743288640181,-158185.77894776,0.000302,14]
[356831333,1743288643013,-101.63549312,0.000302,14]
[356831334,1743288643113,-366.45182833,0.000302,14]
[356831343,1743288697475,233.00127226,0.0002,2]
[356831344,1743288697496,327.14879588,0.0002,2]
[356831345,1743288697517,294.0,0.0002,2]
[356831346,1743288697537,1920.85942288,0.0002,2]
[356831347,1743288697558,402.38113466,0.0002,2]